[Event "15. ročník Dobrovický rapid Tereos TTD a.s."]
[Site "Dobrovice, Czech Republic"]
[Date "2020.02.29"]
[Round "2.14"]
[White "Pirvulescu Adrian"]
[Black "Groh Jiri"]
[Result "1-0"]
[TimeControl "15m + 3s / tah"]
[WhiteElo "1829"]
[BlackElo "2031"]

1. e4 {[%clk 00:15:01]} {[%emt 00:00:04]} c5 {[%clk 00:15:02]} {[%emt
00:00:04]} 2. Nc3 {[%clk 00:15:01]} {[%emt 00:00:03]} Nc6 {[%clk 00:15:04]} 3.
f4 {[%clk 00:15:02]} {[%emt 00:00:02]} g6 {[%clk 00:15:04]} {[%emt 00:00:03]} 4.
Nf3 {[%clk 00:15:03]} {[%emt 00:00:01]} Bg7 {[%clk 00:15:06]} {[%emt 00:00:01]}
5. Bb5 {[%clk 00:15:03]} {[%emt 00:00:02]} d6 {[%clk 00:15:06]} {[%emt
00:00:04]} 6. Bxc6+ {[%clk 00:14:57]} {[%emt 00:00:10]} bxc6 {[%clk 00:15:08]}
{[%emt 00:00:01]} 7. O-O {[%clk 00:14:50]} {[%emt 00:00:09]} e6 {[%clk
00:14:56]} {[%emt 00:00:15]} 8. d3 {[%clk 00:14:35]} {[%emt 00:00:18]} Ne7
{[%clk 00:14:57]} {[%emt 00:00:02]} 9. Qe1 {[%clk 00:14:08]} {[%emt 00:00:30]}
O-O {[%clk 00:14:51]} {[%emt 00:00:08]} 10. e5 {[%clk 00:12:51]} {[%emt
00:01:21]} Nd5 {[%clk 00:13:52]} {[%emt 00:01:02]} 11. Ne4 {[%clk 00:11:47]}
{[%emt 00:01:06]} dxe5 {[%clk 00:12:58]} {[%emt 00:00:57]} 12. fxe5 {[%clk
00:10:29]} {[%emt 00:01:22]} Nb4 {[%clk 00:12:23]} {[%emt 00:00:37]} 13. Qc3
{[%clk 00:09:31]} {[%emt 00:01:01]} Qd5 {[%clk 00:09:56]} {[%emt 00:02:22]} 14.
a3 {[%clk 00:08:57]} {[%emt 00:00:46]} Na6 {[%clk 00:09:58]} {[%emt 00:00:01]}
15. Be3 {[%clk 00:06:08]} {[%emt 00:02:52]} Rd8 {[%clk 00:09:10]} {[%emt
00:00:49]} 16. Nf6+ {[%clk 00:04:15]} {[%emt 00:01:56]} Bxf6 {[%clk 00:09:10]}
{[%emt 00:00:03]} 17. exf6 {[%clk 00:04:16]} {[%emt 00:00:01]} Rb8 {[%clk
00:07:48]} {[%emt 00:01:26]} 18. b3 {[%clk 00:04:01]} {[%emt 00:00:19]} Qh5
{[%clk 00:06:03]} {[%emt 00:01:47]} 19. Ne5 {[%clk 00:03:46]} {[%emt 00:00:18]}
Bd7 {[%clk 00:05:54]} {[%emt 00:00:13]} 20. Bxc5 {[%clk 00:02:34]} {[%emt
00:01:15]} Nxc5 {[%clk 00:05:38]} {[%emt 00:00:19]} 21. Qxc5 {[%clk 00:02:36]}
{[%emt 00:00:02]} Be8 {[%clk 00:05:18]} {[%emt 00:00:23]} 22. Qe3 {[%clk
00:01:47]} {[%emt 00:00:52]} Rb5 {[%clk 00:05:01]} {[%emt 00:00:20]} 23. Rae1
{[%clk 00:01:33]} {[%emt 00:00:17]} Rdd5 {[%clk 00:04:43]} {[%emt 00:00:21]} 24.
d4 {[%clk 00:00:31]} {[%emt 00:01:06]} c5 {[%clk 00:04:22]} {[%emt 00:00:24]}
25. c4 {[%clk 00:00:10]} {[%emt 00:00:24]} cxd4 {[%clk 00:04:18]} {[%emt
00:00:04]} 26. Qf3 {[%clk 00:00:06]} {[%emt 00:00:08]} Rxe5 {[%clk 00:04:02]}
{[%emt 00:00:21]} 27. Qxh5 {[%clk 00:00:04]} {[%emt 00:00:05]} Rxh5 {[%clk
00:04:03]} {[%emt 00:00:02]} 28. cxb5 {[%clk 00:00:07]} Bxb5 {[%clk 00:03:56]}
{[%emt 00:00:10]} 29. Rf4 {[%clk 00:00:07]} {[%emt 00:00:02]} d3 {[%clk
00:03:48]} {[%emt 00:00:11]} 30. a4 {[%clk 00:00:05]} {[%emt 00:00:06]} Ba6
{[%clk 00:03:29]} {[%emt 00:00:22]} 31. Rd4 {[%clk 00:00:07]} {[%emt 00:00:02]}
h6 {[%clk 00:03:16]} {[%emt 00:00:15]} 32. Rd8+ {[%clk 00:00:06]} {[%emt
00:00:04]} Kh7 {[%clk 00:03:18]} {[%emt 00:00:01]} 33. Rd7 {[%clk 00:00:05]}
{[%emt 00:00:04]} Rf5 {[%clk 00:01:51]} {[%emt 00:01:30]} 34. Rxf7+ {[%clk
00:00:04]} {[%emt 00:00:04]} Kg8 {[%clk 00:01:53]} 35. Rxa7 {[%clk 00:00:03]}
{[%emt 00:00:02]} d2 {[%clk 00:01:49]} {[%emt 00:00:08]} 36. Rd1 {[%clk
00:00:04]} {[%emt 00:00:04]} Rxf6 {[%clk 00:01:45]} {[%emt 00:00:07]} 37. Rxa6
{[%clk 00:00:05]} {[%emt 00:00:03]} h5 {[%clk 00:01:24]} {[%emt 00:00:23]} 38.
Rxd2 {[%clk 00:00:07]} {[%emt 00:00:01]} Kh7 {[%clk 00:01:27]} 39. Rf2 {[%clk
00:00:08]} {[%emt 00:00:02]} Rf5 {[%clk 00:01:13]} {[%emt 00:00:17]} 40. Rxf5
{[%clk 00:00:09]} {[%emt 00:00:02]} exf5 {[%clk 00:01:15]} 41. Kf2 {[%clk
00:00:11]} {[%emt 00:00:02]} Kg7 {[%clk 00:01:16]} {[%emt 00:00:01]} 42. Re6
{[%clk 00:00:12]} {[%emt 00:00:01]} Kf7 {[%clk 00:01:19]} 43. Re2 {[%clk
00:00:14]} {[%emt 00:00:02]} g5 {[%clk 00:01:20]} {[%emt 00:00:02]} 44. a5
{[%clk 00:00:16]} {[%emt 00:00:01]} Kf6 {[%clk 00:01:22]} 45. a6 {[%clk
00:00:18]} f4 {[%clk 00:01:25]} 46. a7 {[%emt 00:00:03]} g4 {[%clk 00:00:39]}
47. a8=Q 1-0

[ePGN "0.1;DGT LiveChess/2.2.5"]

[Event "15. ročník Dobrovický rapid Tereos TTD a.s."]
[Site "Dobrovice, Czech Republic"]
[Date "2020.02.29"]
[Round "3.1"]
[White "Plat Vojtech"]
[Black "Pesek Radomir"]
[Result "1-0"]
[TimeControl "15m + 3s / tah"]
[WhiteElo "2553"]
[BlackElo "1999"]

1. e4 {[%clk 00:15:04]} {[%emt 00:00:02]} c5 {[%clk 00:15:05]} {[%emt
00:00:02]} 2. Nf3 {[%clk 00:15:05]} {[%emt 00:00:01]} d6 {[%clk 00:15:07]}
{[%emt 00:00:01]} 3. c3 {[%clk 00:15:07]} {[%emt 00:00:01]} Nc6 {[%clk
00:15:08]} {[%emt 00:00:02]} 4. d4 {[%clk 00:15:09]} {[%emt 00:00:01]} cxd4
{[%clk 00:15:10]} {[%emt 00:00:01]} 5. cxd4 {[%clk 00:15:11]} {[%emt 00:00:02]}
e6 {[%clk 00:15:12]} {[%emt 00:00:01]} 6. Nc3 {[%clk 00:15:12]} {[%emt
00:00:01]} a6 {[%clk 00:15:14]} {[%emt 00:00:01]} 7. Be2 {[%clk 00:14:31]}
{[%emt 00:00:44]} Be7 {[%clk 00:15:15]} {[%emt 00:00:02]} 8. O-O {[%clk
00:14:26]} {[%emt 00:00:08]} Nf6 {[%clk 00:15:15]} {[%emt 00:00:02]} 9. h3
{[%clk 00:14:23]} {[%emt 00:00:05]} O-O {[%clk 00:15:15]} {[%emt 00:00:03]} 10.
Be3 {[%clk 00:14:25]} {[%emt 00:00:01]} b5 {[%clk 00:15:06]} {[%emt 00:00:12]}
11. d5 {[%clk 00:13:38]} {[%emt 00:00:50]} Ne5 {[%clk 00:13:45]} {[%emt
00:01:24]} 12. dxe6 {[%clk 00:13:37]} {[%emt 00:00:04]} Bxe6 {[%clk 00:13:39]}
{[%emt 00:00:09]} 13. Nd4 {[%clk 00:13:23]} {[%emt 00:00:17]} b4 {[%clk
00:12:59]} {[%emt 00:00:43]} 14. Na4 {[%clk 00:12:25]} {[%emt 00:01:01]} Nxe4
{[%clk 00:12:52]} {[%emt 00:00:10]} 15. f4 {[%clk 00:12:04]} {[%emt 00:00:25]}
Nc4 {[%clk 00:12:37]} {[%emt 00:00:18]} 16. Nxe6 {[%clk 00:11:56]} {[%emt
00:00:11]} Nxe3 {[%clk 00:12:38]} {[%emt 00:00:02]} 17. Nxd8 {[%clk 00:11:57]}
{[%emt 00:00:02]} Nxd1 {[%clk 00:12:40]} {[%emt 00:00:02]} 18. Nc6 {[%clk
00:11:59]} {[%emt 00:00:01]} Ne3 {[%clk 00:10:20]} {[%emt 00:02:22]} 19. Nxe7+
{[%clk 00:11:59]} {[%emt 00:00:03]} Kh8 {[%clk 00:10:22]} 20. Rf3 {[%clk
00:11:05]} {[%emt 00:00:58]} Nc2 {[%clk 00:10:17]} {[%emt 00:00:08]} 21. Rd1
{[%clk 00:11:07]} {[%emt 00:00:01]} Rfe8 {[%clk 00:10:06]} {[%emt 00:00:14]} 22.
Bd3 {[%clk 00:10:48]} {[%emt 00:00:21]} Rxe7 {[%clk 00:09:56]} {[%emt
00:00:13]} 23. Bxc2 {[%clk 00:10:50]} {[%emt 00:00:01]} Rd8 {[%clk 00:09:06]}
{[%emt 00:00:53]} 24. Re3 {[%clk 00:10:31]} {[%emt 00:00:22]} f5 {[%clk
00:09:04]} {[%emt 00:00:06]} 25. Nb6 {[%clk 00:10:31]} {[%emt 00:00:02]} 1-0

[Event "15. ročník Dobrovický rapid Tereos TTD a.s."]
[Site "Dobrovice, Czech Republic"]
[Date "2020.02.29"]
[Round "3.2"]
[White "Melich Jindrich"]
[Black "Zwardon Vojtech"]
[Result "0-1"]
[TimeControl "15m + 3s / tah"]
[WhiteElo "1952"]
[BlackElo "2460"]

1. b4 {[%clk 00:15:04]} g6 {[%clk 00:15:06]} 2. Bb2 {[%clk 00:15:07]} Nf6
{[%clk 00:15:08]} 3. c4 {[%clk 00:15:09]} {[%emt 00:00:02]} Bg7 {[%clk
00:15:10]} 4. Nf3 {[%clk 00:15:09]} {[%emt 00:00:03]} b6 {[%clk 00:14:59]}
{[%emt 00:00:13]} 5. e3 {[%clk 00:15:00]} {[%emt 00:00:12]} Bb7 {[%clk
00:14:59]} {[%emt 00:00:03]} 6. Be2 {[%clk 00:14:54]} {[%emt 00:00:09]} c5
{[%clk 00:14:59]} {[%emt 00:00:02]} 7. bxc5 {[%clk 00:14:49]} {[%emt 00:00:09]}
bxc5 {[%clk 00:15:00]} {[%emt 00:00:01]} 8. O-O {[%clk 00:14:43]} {[%emt
00:00:09]} O-O {[%clk 00:15:01]} {[%emt 00:00:02]} 9. d3 {[%clk 00:14:31]}
{[%emt 00:00:15]} Nc6 {[%clk 00:14:58]} {[%emt 00:00:05]} 10. Nbd2 {[%clk
00:14:25]} {[%emt 00:00:10]} Rb8 {[%clk 00:14:52]} {[%emt 00:00:09]} 11. Bc3
{[%clk 00:14:06]} {[%emt 00:00:22]} Qc7 {[%clk 00:14:43]} {[%emt 00:00:11]} 12.
Rb1 {[%clk 00:13:57]} {[%emt 00:00:12]} Ba8 {[%clk 00:13:39]} {[%emt 00:01:07]}
13. a3 {[%clk 00:13:00]} {[%emt 00:01:00]} Rxb1 {[%clk 00:12:37]} {[%emt
00:01:05]} 14. Qxb1 {[%clk 00:13:00]} {[%emt 00:00:04]} Rb8 {[%clk 00:12:32]}
{[%emt 00:00:07]} 15. Qc2 {[%clk 00:12:04]} {[%emt 00:01:00]} Qb7 {[%clk
00:12:18]} {[%emt 00:00:14]} 16. Rb1 {[%clk 00:12:02]} {[%emt 00:00:07]} Qa6
{[%clk 00:12:20]} {[%emt 00:00:02]} 17. Rxb8+ {[%clk 00:11:46]} {[%emt
00:00:19]} Nxb8 {[%clk 00:12:21]} {[%emt 00:00:01]} 18. Qb2 {[%clk 00:11:36]}
{[%emt 00:00:13]} Nc6 {[%clk 00:12:22]} {[%emt 00:00:02]} 19. Ne4 {[%clk
00:11:14]} {[%emt 00:00:26]} Nxe4 {[%clk 00:11:45]} {[%emt 00:00:39]} 20. Bxg7
{[%clk 00:11:14]} {[%emt 00:00:04]} f6 {[%clk 00:11:36]} {[%emt 00:00:12]} 21.
dxe4 {[%clk 00:11:00]} {[%emt 00:00:17]} Kxg7 {[%clk 00:11:37]} {[%emt
00:00:01]} 22. e5 {[%clk 00:10:59]} {[%emt 00:00:05]} Qb6 {[%clk 00:10:54]}
{[%emt 00:00:45]} 23. exf6+ {[%clk 00:10:42]} {[%emt 00:00:20]} exf6 {[%clk
00:10:55]} {[%emt 00:00:02]} 24. Qd2 {[%clk 00:09:27]} {[%emt 00:01:18]} Qc7
{[%clk 00:10:55]} {[%emt 00:00:02]} 25. h3 {[%clk 00:09:17]} {[%emt 00:00:14]}
Bb7 {[%clk 00:10:50]} {[%emt 00:00:07]} 26. Qc3 {[%clk 00:08:59]} {[%emt
00:00:23]} Qd6 {[%clk 00:10:34]} {[%emt 00:00:17]} 27. Nd2 {[%clk 00:08:01]}
{[%emt 00:01:03]} Ne5 {[%clk 00:10:24]} {[%emt 00:00:13]} 28. f4 {[%clk
00:07:56]} {[%emt 00:00:09]} Qc6 {[%clk 00:09:56]} {[%emt 00:00:30]} 29. Nf3
{[%clk 00:07:01]} {[%emt 00:00:58]} Nf7 {[%clk 00:09:55]} {[%emt 00:00:04]} 30.
Ne1 {[%clk 00:06:57]} {[%emt 00:00:07]} Qe6 {[%clk 00:09:48]} {[%emt 00:00:08]}
31. Bf3 {[%clk 00:06:53]} {[%emt 00:00:08]} Bxf3 {[%clk 00:09:41]} {[%emt
00:00:11]} 32. Nxf3 {[%clk 00:06:55]} {[%emt 00:00:01]} Nd6 {[%clk 00:09:40]}
{[%emt 00:00:04]} 33. Nd2 {[%clk 00:06:55]} {[%emt 00:00:03]} Nf5 {[%clk
00:09:35]} {[%emt 00:00:08]} 34. Kf2 {[%clk 00:06:50]} {[%emt 00:00:08]} h5
{[%clk 00:09:30]} {[%emt 00:00:08]} 35. g3 {[%clk 00:05:41]} {[%emt 00:01:12]}
Qc6 {[%clk 00:09:09]} {[%emt 00:00:24]} 36. Nf3 {[%clk 00:04:31]} {[%emt
00:01:13]} Nd6 {[%clk 00:08:27]} {[%emt 00:00:44]} 37. Qd3 {[%clk 00:04:20]}
{[%emt 00:00:14]} Ne4+ {[%clk 00:08:20]} {[%emt 00:00:10]} 38. Kg2 {[%clk
00:04:15]} {[%emt 00:00:08]} Qb7 {[%clk 00:07:53]} {[%emt 00:00:29]} 39. Qc2
{[%clk 00:03:42]} {[%emt 00:00:37]} f5 {[%clk 00:07:35]} {[%emt 00:00:22]} 40.
Kh2 {[%clk 00:03:27]} {[%emt 00:00:18]} Kh6 {[%clk 00:07:17]} {[%emt 00:00:21]}
41. Ne5 {[%clk 00:02:47]} {[%emt 00:00:43]} d6 {[%clk 00:07:14]} {[%emt
00:00:06]} 42. Nd3 {[%clk 00:02:38]} {[%emt 00:00:12]} Kh7 {[%clk 00:06:18]}
{[%emt 00:00:59]} 43. Qb2 {[%clk 00:02:38]} {[%emt 00:00:03]} Qf7 {[%clk
00:05:54]} {[%emt 00:00:26]} 44. Qc2 {[%clk 00:02:24]} {[%emt 00:00:17]} Nf6
{[%clk 00:05:45]} {[%emt 00:00:12]} 45. Nf2 {[%clk 00:02:01]} {[%emt 00:00:26]}
Qb7 {[%clk 00:05:22]} {[%emt 00:00:25]} 46. Qe2 {[%clk 00:01:46]} {[%emt
00:00:19]} Kg7 {[%clk 00:04:50]} {[%emt 00:00:36]} 47. g4 {[%clk 00:01:38]}
{[%emt 00:00:11]} h4 {[%clk 00:04:48]} {[%emt 00:00:05]} 48. gxf5 {[%clk
00:01:16]} {[%emt 00:00:25]} gxf5 {[%clk 00:04:49]} {[%emt 00:00:01]} 49. Kg1
{[%clk 00:00:53]} {[%emt 00:00:26]} Kf7 {[%clk 00:04:31]} {[%emt 00:00:21]} 50.
Qd3 {[%clk 00:00:55]} {[%emt 00:00:02]} Ke6 {[%clk 00:04:28]} {[%emt 00:00:06]}
51. Qc2 {[%clk 00:00:37]} {[%emt 00:00:21]} Qf3 {[%clk 00:04:26]} {[%emt
00:00:04]} 52. Qd2 {[%clk 00:00:37]} {[%emt 00:00:04]} Nh5 {[%clk 00:03:31]}
{[%emt 00:00:58]} 53. Qd1 {[%emt 00:01:00]} Ng3 {[%emt 00:00:28]} 54. Qd2
{[%emt 00:00:01]} Kd7 {[%emt 00:00:12]} 55. Qd3 {[%emt 00:00:03]} Ne4 {[%emt
00:00:14]} 56. Nxe4 {[%emt 00:00:04]} fxe4 {[%emt 00:00:03]} 57. Qc3 {[%emt
00:00:04]} Qg3+ {[%emt 00:00:17]} 0-1

[Event "15. ročník Dobrovický rapid Tereos TTD a.s."]
[Site "Dobrovice, Czech Republic"]
[Date "2020.02.29"]
[Round "3.3"]
[White "Kourousis Epaminondas"]
[Black "Jacek Miloslav"]
[Result "1-0"]
[TimeControl "15m + 3s / tah"]
[WhiteElo "2406"]
[BlackElo "1977"]

1. e4 {[%clk 00:15:03]} {[%emt 00:00:02]} c5 {[%clk 00:15:03]} {[%emt
00:00:03]} 2. b3 {[%clk 00:14:59]} {[%emt 00:00:08]} d5 {[%clk 00:14:49]}
{[%emt 00:00:18]} 3. exd5 {[%clk 00:14:56]} {[%emt 00:00:05]} Qxd5 {[%clk
00:14:48]} {[%emt 00:00:04]} 4. Bb2 {[%clk 00:14:52]} {[%emt 00:00:06]} Nf6
{[%clk 00:14:44]} {[%emt 00:00:09]} 5. Nc3 {[%clk 00:14:27]} {[%emt 00:00:27]}
Qd6 {[%clk 00:14:20]} {[%emt 00:00:27]} 6. Nf3 {[%clk 00:14:06]} {[%emt
00:00:24]} Nc6 {[%clk 00:14:04]} {[%emt 00:00:19]} 7. Be2 {[%clk 00:12:50]}
{[%emt 00:01:19]} Bf5 {[%clk 00:13:49]} {[%emt 00:00:18]} 8. O-O {[%clk
00:12:45]} {[%emt 00:00:08]} e6 {[%clk 00:13:48]} {[%emt 00:00:04]} 9. d4
{[%clk 00:12:29]} {[%emt 00:00:18]} Be7 {[%clk 00:12:59]} {[%emt 00:00:52]} 10.
Nb5 {[%clk 00:12:20]} {[%emt 00:00:12]} Qd8 {[%clk 00:12:14]} {[%emt 00:00:48]}
11. dxc5 {[%clk 00:10:54]} {[%emt 00:01:28]} Bxc5 {[%clk 00:11:41]} {[%emt
00:00:37]} 12. Nbd4 {[%clk 00:10:29]} {[%emt 00:00:28]} Be4 {[%clk 00:10:15]}
{[%emt 00:01:29]} 13. Nxc6 {[%clk 00:09:54]} {[%emt 00:00:38]} Bxc6 {[%clk
00:10:01]} {[%emt 00:00:17]} 14. Ne5 {[%clk 00:09:43]} {[%emt 00:00:13]} O-O
{[%clk 00:08:23]} {[%emt 00:01:42]} 15. Nxc6 {[%clk 00:09:43]} {[%emt
00:00:03]} bxc6 {[%clk 00:08:24]} {[%emt 00:00:01]} 16. Bf3 {[%clk 00:09:14]}
{[%emt 00:00:32]} Qb6 {[%clk 00:08:18]} {[%emt 00:00:09]} 17. Qe2 {[%clk
00:08:11]} {[%emt 00:01:06]} Rfd8 {[%clk 00:07:27]} {[%emt 00:00:54]} 18. Rad1
{[%clk 00:08:01]} {[%emt 00:00:12]} Nd5 {[%clk 00:06:56]} {[%emt 00:00:35]} 19.
g3 {[%clk 00:06:49]} {[%emt 00:01:15]} a5 {[%clk 00:06:14]} {[%emt 00:00:45]}
20. Rd3 {[%clk 00:04:20]} {[%emt 00:02:33]} Nb4 {[%clk 00:05:18]} {[%emt
00:00:58]} 21. Rxd8+ {[%clk 00:04:22]} {[%emt 00:00:01]} Rxd8 {[%clk 00:05:11]}
{[%emt 00:00:10]} 22. a3 {[%clk 00:04:23]} {[%emt 00:00:02]} Nd5 {[%clk
00:04:47]} {[%emt 00:00:27]} 23. Rd1 {[%clk 00:04:22]} {[%emt 00:00:04]} Be7
{[%clk 00:03:55]} {[%emt 00:00:55]} 24. c4 {[%clk 00:04:06]} {[%emt 00:00:18]}
Nf6 {[%clk 00:03:44]} {[%emt 00:00:15]} 25. Rxd8+ {[%clk 00:04:04]} {[%emt
00:00:05]} Bxd8 {[%clk 00:03:40]} {[%emt 00:00:07]} 26. Qd3 {[%clk 00:03:31]}
{[%emt 00:00:36]} Be7 {[%clk 00:03:32]} {[%emt 00:00:12]} 27. Kg2 {[%clk
00:03:24]} {[%emt 00:00:10]} h6 {[%clk 00:03:28]} {[%emt 00:00:06]} 28. h4
{[%clk 00:03:24]} {[%emt 00:00:03]} Qc5 {[%clk 00:03:03]} {[%emt 00:00:29]} 29.
Kf1 {[%clk 00:03:10]} {[%emt 00:00:17]} Qb6 {[%clk 00:02:33]} {[%emt 00:00:33]}
30. Ke2 {[%clk 00:02:14]} {[%emt 00:01:00]} c5 {[%clk 00:02:29]} {[%emt
00:00:07]} 31. Kd1 {[%clk 00:01:51]} {[%emt 00:00:25]} a4 {[%clk 00:02:24]}
{[%emt 00:00:08]} 32. Kc2 {[%clk 00:01:49]} {[%emt 00:00:05]} axb3+ {[%clk
00:02:21]} {[%emt 00:00:07]} 33. Qxb3 {[%clk 00:01:51]} {[%emt 00:00:01]} Qd6
{[%clk 00:02:04]} {[%emt 00:00:20]} 34. Qd3 {[%clk 00:01:46]} {[%emt 00:00:07]}
Qb6 {[%clk 00:02:02]} {[%emt 00:00:05]} 35. g4 {[%clk 00:01:38]} {[%emt
00:00:11]} Qa5 {[%clk 00:01:52]} {[%emt 00:00:14]} 36. g5 {[%clk 00:01:36]}
{[%emt 00:00:06]} hxg5 {[%clk 00:01:53]} {[%emt 00:00:02]} 37. hxg5 {[%clk
00:01:37]} Ne8 {[%clk 00:01:44]} {[%emt 00:00:12]} 38. g6 {[%clk 00:01:19]}
{[%emt 00:00:21]} Qa4+ {[%clk 00:01:33]} {[%emt 00:00:14]} 39. Kb1 {[%clk
00:00:50]} {[%emt 00:00:32]} fxg6 {[%clk 00:01:16]} {[%emt 00:00:21]} 40. Qxg6
{[%clk 00:00:51]} {[%emt 00:00:02]} Bf6 {[%clk 00:00:45]} {[%emt 00:00:34]} 41.
Bg4 {[%clk 00:00:53]} Qd7 {[%clk 00:00:33]} {[%emt 00:00:15]} 42. Qe4 {[%clk
00:00:35]} {[%emt 00:00:21]} Kf7 {[%clk 00:00:23]} {[%emt 00:00:13]} 43. Bh5+
{[%clk 00:00:37]} Ke7 {[%clk 00:00:20]} {[%emt 00:00:06]} 44. Bxe8 {[%clk
00:00:31]} {[%emt 00:00:09]} Kxe8 {[%clk 00:00:16]} {[%emt 00:00:07]} 45. Bxf6
{[%clk 00:00:10]} {[%emt 00:00:24]} gxf6 {[%clk 00:00:17]} {[%emt 00:00:01]} 46.
Kc2 {[%clk 00:00:10]} {[%emt 00:00:03]} Qa4+ {[%clk 00:00:13]} {[%emt
00:00:07]} 47. Kb2 {[%clk 00:00:12]} {[%emt 00:00:01]} Qd7 {[%clk 00:00:11]}
{[%emt 00:00:05]} 48. f4 {[%clk 00:00:07]} {[%emt 00:00:08]} Kf7 {[%clk
00:00:08]} {[%emt 00:00:05]} 49. Qh7+ {[%clk 00:00:09]} {[%emt 00:00:01]} Ke8
{[%clk 00:00:11]} 50. Qh8+ {[%clk 00:00:06]} {[%emt 00:00:06]} Ke7 {[%clk
00:00:13]} 51. Qg7+ {[%clk 00:00:08]} Ke8 {[%clk 00:00:10]} {[%emt 00:00:06]}
52. Qxf6 {[%clk 00:00:09]} {[%emt 00:00:02]} Qd2+ {[%clk 00:00:10]} {[%emt
00:00:03]} 53. Kb3 {[%clk 00:00:11]} {[%emt 00:00:01]} Qd3+ {[%clk 00:00:10]}
{[%emt 00:00:03]} 54. Qc3 {[%clk 00:00:10]} {[%emt 00:00:03]} Qb1+ {[%clk
00:00:11]} {[%emt 00:00:02]} 55. Ka4 {[%clk 00:00:12]} {[%emt 00:00:01]} Qd1+
{[%clk 00:00:12]} {[%emt 00:00:02]} 56. Kb5 {[%clk 00:00:12]} {[%emt 00:00:02]}
Qd6 {[%clk 00:00:08]} {[%emt 00:00:07]} 57. Qe5 {[%clk 00:00:09]} {[%emt
00:00:06]} Qd7+ {[%clk 00:00:09]} {[%emt 00:00:03]} 58. Kxc5 {[%clk 00:00:10]}
{[%emt 00:00:01]} Qa7+ {[%clk 00:00:08]} {[%emt 00:00:05]} 59. Kb4 {[%clk
00:00:06]} {[%emt 00:00:07]} Kf7 {[%clk 00:00:04]} {[%emt 00:00:08]} 60. f5
{[%clk 00:00:05]} {[%emt 00:00:05]} 1-0

[Event "15. ročník Dobrovický rapid Tereos TTD a.s."]
[Site "Dobrovice, Czech Republic"]
[Date "2020.02.29"]
[Round "3.4"]
[White "Janous Petr"]
[Black "Velicka Petr"]
[Result "0-1"]
[TimeControl "15m + 3s / tah"]
[WhiteElo "1931"]
[BlackElo "2395"]

1. e4 {[%clk 00:15:05]} c6 {[%clk 00:15:03]} {[%emt 00:00:03]} 2. Nc3 {[%clk
00:15:06]} {[%emt 00:00:02]} d5 {[%clk 00:15:05]} {[%emt 00:00:01]} 3. Nf3
{[%clk 00:15:09]} {[%emt 00:00:01]} Bg4 {[%clk 00:15:07]} 4. h3 {[%clk
00:15:11]} {[%emt 00:00:01]} Bxf3 {[%clk 00:15:08]} 5. Qxf3 {[%clk 00:15:13]}
Nf6 {[%clk 00:15:10]} {[%emt 00:00:01]} 6. d4 {[%clk 00:15:14]} {[%emt
00:00:03]} dxe4 {[%clk 00:15:07]} {[%emt 00:00:04]} 7. Qe3 {[%clk 00:15:02]}
{[%emt 00:00:15]} Nbd7 {[%clk 00:14:55]} {[%emt 00:00:15]} 8. Nxe4 {[%clk
00:14:53]} {[%emt 00:00:13]} Nxe4 {[%clk 00:14:56]} {[%emt 00:00:02]} 9. Qxe4
{[%clk 00:14:55]} Nf6 {[%clk 00:14:57]} {[%emt 00:00:01]} 10. Qd3 {[%clk
00:14:32]} {[%emt 00:00:26]} e6 {[%clk 00:14:56]} {[%emt 00:00:04]} 11. Bf4
{[%clk 00:14:28]} {[%emt 00:00:08]} Bd6 {[%clk 00:14:57]} {[%emt 00:00:02]} 12.
Bxd6 {[%clk 00:13:47]} {[%emt 00:00:44]} Qxd6 {[%clk 00:14:58]} {[%emt
00:00:01]} 13. O-O-O {[%clk 00:13:44]} {[%emt 00:00:06]} O-O-O {[%clk
00:14:47]} {[%emt 00:00:14]} 14. Kb1 {[%clk 00:13:30]} {[%emt 00:00:18]} c5
{[%clk 00:14:26]} {[%emt 00:00:23]} 15. Qa3 {[%clk 00:12:08]} {[%emt 00:01:25]}
Kb8 {[%clk 00:14:20]} {[%emt 00:00:09]} 16. Be2 {[%clk 00:09:59]} {[%emt
00:02:12]} cxd4 {[%clk 00:14:21]} {[%emt 00:00:02]} 17. Qb3 {[%clk 00:10:01]}
Qc7 {[%clk 00:14:04]} {[%emt 00:00:20]} 18. Bf3 {[%clk 00:09:58]} {[%emt
00:00:07]} Rd6 {[%clk 00:14:05]} {[%emt 00:00:01]} 19. Rhe1 {[%clk 00:09:54]}
{[%emt 00:00:08]} Rhd8 {[%clk 00:14:06]} {[%emt 00:00:01]} 20. Rd3 {[%clk
00:09:49]} {[%emt 00:00:08]} Nd7 {[%clk 00:14:00]} {[%emt 00:00:09]} 21. Qa3
{[%clk 00:09:37]} {[%emt 00:00:16]} Nc5 {[%clk 00:13:56]} {[%emt 00:00:07]} 22.
Rd2 {[%clk 00:09:39]} Ra6 {[%clk 00:13:56]} {[%emt 00:00:04]} 23. Qb4 {[%clk
00:09:31]} {[%emt 00:00:11]} Ra4 {[%clk 00:12:12]} {[%emt 00:01:46]} 24. Qb5
{[%clk 00:09:27]} {[%emt 00:00:08]} d3 {[%clk 00:12:13]} {[%emt 00:00:02]} 25.
Bxb7 {[%clk 00:08:35]} {[%emt 00:00:55]} Ra5 {[%clk 00:12:07]} {[%emt
00:00:09]} 0-1